fUST/lending_fUST_20251222
["ID","MTS","AMOUNT","RATE_DAILY","PERIOD"]
[399463737,1766378944971,6954.34,0.00032876,60]
[399463738,1766378945012,1106.71,0.00032876,60]
[399463739,1766378945057,780.99,0.00032876,60]
[399463740,1766378945103,4503.92,0.00032876,60]
[399463741,1766378945152,6954.34,0.00032876,60]
[399463742,1766378945198,7493.66,0.00032876,60]
[399463743,1766378945244,1106.71,0.00032876,60]
[399463744,1766378945291,780.99,0.00032876,60]
[399463745,1766378945342,4503.92,0.00032876,60]
[399463746,1766378945387,6954.34,0.00032876,60]
[399463747,1766378945438,7493.66,0.00032876,60]
[399463748,1766378945734,1106.71,0.00032876,60]
[399463749,1766378945779,780.99,0.00032876,60]
[399463750,1766378945835,7493.66,0.00032876,60]
[399463751,1766378945880,4503.92,0.00032876,60]
[399463752,1766378945925,1106.71,0.00032876,60]
[399463753,1766378945972,6954.34,0.00032876,60]
[399463754,1766378946018,780.99,0.00032876,60]
[399463755,1766378946071,7493.66,0.00032876,60]
[399463756,1766378946115,4503.92,0.00032876,60]
[399463757,1766378946165,1106.71,0.00032876,60]
[399463758,1766378946212,780.99,0.00032876,60]
[399463759,1766378946259,6954.34,0.00032876,60]
[399463760,1766378946308,4503.92,0.00032876,60]
[399463761,1766378946357,7493.66,0.00032876,60]
[399463762,1766378946408,780.99,0.00032876,60]
[399463763,1766378946455,1106.71,0.00032876,60]
[399463764,1766378946503,6954.34,0.00032876,60]
[399463765,1766378946550,4503.92,0.00032876,60]
[399463766,1766378946596,7493.66,0.00032876,60]
[399463767,1766378946641,780.99,0.00032876,60]
[399463768,1766378946686,1106.71,0.00032876,60]
[399463769,1766378946732,6954.34,0.00032876,60]
[399463770,1766378946776,4503.92,0.00032876,60]
[399463771,1766378946825,780.99,0.00032876,60]
[399463772,1766378946870,7493.66,0.00032876,60]
[399463773,1766378946913,1106.71,0.00032876,60]
[399463774,1766378946958,781.14485573,0.00032876,60]
[399463775,1766378947011,7493.66,0.00032876,60]
[399463776,1766378947059,1106.71,0.00032876,60]
[399463777,1766378947115,6954.34,0.00032876,60]
[399463778,1766378947165,7493.66,0.00032876,60]
[399463779,1766378947213,1106.71,0.00032876,60]
[399463780,1766378947261,6954.34,0.00032876,60]
[399463781,1766378947311,7493.66,0.00032876,60]
[399463782,1766378947440,1106.8820628,0.00032876,60]
[399463783,1766378947497,6954.34,0.00032876,60]
[399463784,1766378947548,7493.66,0.00032876,60]
[399463785,1766378947594,6954.34,0.00032876,60]
[399463786,1766378947642,4503.92,0.00032876,60]
[399463787,1766378947685,7493.66,0.00032876,60]
[399463788,1766378947726,6954.34,0.00032876,60]
[399463789,1766378947810,4503.92,0.00032876,60]
[399463790,1766378947852,7493.66,0.00032876,60]
[399463791,1766378947893,6954.48812443,0.00032876,60]
[399463792,1766378947934,4503.92,0.00032876,60]
[399463793,1766378947976,7493.66,0.00032876,60]
[399463794,1766378948023,4503.92,0.00032876,60]
[399463795,1766378948067,7493.84585457,0.00032876,60]
[399463796,1766378948123,4503.92,0.00032876,60]
[399463797,1766378948220,4503.92,0.00032876,60]
[399463798,1766378948482,4503.92,0.00032876,60]
[399463799,1766378948699,4503.92,0.00032876,60]
[399463800,1766378948884,1785.95,0.00032876,60]
[399463801,1766378948934,4503.92,0.00032876,60]
[399463802,1766378949112,1785.95,0.00032876,60]
[399463803,1766378949168,4503.92,0.00032876,60]
[399463804,1766378949210,1594.45,0.00032876,60]
[399463805,1766378949366,1785.95,0.00032876,60]
[399463806,1766378949413,4503.92,0.00032876,60]
[399463807,1766378949455,1594.45,0.00032876,60]
[399463808,1766378949668,4503.92,0.00032876,60]
[399463809,1766378949713,1785.95,0.00032876,60]
[399463810,1766378949816,1594.45,0.00032876,60]
[399463811,1766378949866,500.0,0.00032876,60]
[399463812,1766378949908,1785.95,0.00032876,60]
[399463813,1766378949951,4504.0,0.00032876,60]
[399463814,1766378950006,1594.45,0.00032876,60]
[399463815,1766378950087,500.0,0.00032876,60]
[399463816,1766378950134,1785.95,0.00032876,60]
[399463817,1766378950181,500.0,0.00032876,60]
[399463818,1766378950431,1594.45,0.00032876,60]
[399463819,1766378950479,515.22403022,0.00032876,60]
[399463820,1766378950528,500.0,0.00032876,60]
[399463821,1766378950576,1785.95,0.00032876,60]
[399463822,1766378950628,500.0,0.00032876,60]
[399463823,1766378950676,1594.45,0.00032876,60]
[399463824,1766378950726,500.0,0.00032876,60]
[399463825,1766378950770,1785.95,0.00032876,60]
[399463826,1766378950817,500.0,0.00032876,60]
[399463827,1766378950860,1594.45,0.00032876,60]
[399463828,1766378950903,500.0,0.00032876,60]
[399463829,1766378950946,1785.95,0.00032876,60]
[399463830,1766378951009,500.0,0.00032876,60]
[399463831,1766378951055,500.0,0.00032876,60]
[399463832,1766378951103,1785.95,0.00032876,60]
[399463833,1766378951160,1594.45,0.00032876,60]
[399463834,1766378951240,500.0,0.00032876,60]
[399463835,1766378951284,500.0,0.00032876,60]
[399463836,1766378951328,1785.95,0.00032876,60]
[399463837,1766378951370,1594.45,0.00032876,60]
[399463838,1766378951496,500.0,0.00032876,60]
[399463839,1766378951587,500.0,0.00032876,60]
[399463840,1766378951632,1594.45,0.00032876,60]
[399463841,1766378951675,1785.95,0.00032876,60]
[399463842,1766378951723,500.0,0.00032876,60]
[399463843,1766378951770,1594.45,0.00032876,60]
[399463844,1766378951815,1785.95,0.00032876,60]
[399463845,1766378951865,1424.76,0.00032876,60]
[399463846,1766378951908,500.0,0.00032876,60]
[399463847,1766378951949,500.0,0.00032876,60]
[399463848,1766378951998,1594.45,0.00032876,60]
[399463849,1766378952043,1785.95,0.00032876,60]
[399463850,1766378952088,1424.76,0.00032876,60]
[399463851,1766378952135,500.0,0.00032876,60]
[399463852,1766378952179,500.0,0.00032876,60]
[399463853,1766378952226,1785.95,0.00032876,60]
[399463854,1766378952269,1594.45,0.00032876,60]
[399463855,1766378952320,1424.76,0.00032876,60]
[399463856,1766378952362,500.0,0.00032876,60]
[399463857,1766378952404,500.0,0.00032876,60]
[399463858,1766378952450,1785.95,0.00032876,60]
[399463859,1766378952493,1594.45,0.00032876,60]
[399463860,1766378952589,1424.76,0.00032876,60]
[399463861,1766378952632,500.0,0.00032876,60]
[399463862,1766378952674,500.0,0.00032876,60]
[399463863,1766378952719,1785.95,0.00032876,60]
[399463864,1766378952760,1594.45,0.00032876,60]
[399463865,1766378952812,500.0,0.00032876,60]
[399463866,1766378952853,500.0,0.00032876,60]
[399463867,1766378952899,1785.95,0.00032876,60]
[399463868,1766378952940,1594.45,0.00032876,60]
[399463869,1766378953013,1424.76,0.00032876,60]
[399463870,1766378953056,500.0,0.00032876,60]
[399463871,1766378953099,513.99318709,0.00032876,60]
[399463872,1766378953150,1594.45,0.00032876,60]
[399463873,1766378953235,1785.95,0.00032876,60]
[399463874,1766378953282,1424.76,0.00032876,60]
[399463875,1766378953330,500.0,0.00032876,60]
[399463876,1766378953378,1594.45,0.00032876,60]
[399463877,1766378953453,1785.95,0.00032876,60]
[399463878,1766378953517,516.78512422,0.00032876,60]
[399463879,1766378953625,1594.45,0.00032876,60]
[399463880,1766378953672,1424.76,0.00032876,60]
[399463881,1766378953726,1785.95,0.00032876,60]
[399463882,1766378953859,1594.45,0.00032876,60]
[399463883,1766378953909,1424.76,0.00032876,60]
[399463884,1766378953957,1785.95,0.00032876,60]
[399463885,1766378954083,1424.76,0.00032876,60]
[399463886,1766378954826,1594.45,0.00032876,60]
[399463887,1766378954906,1785.95,0.00032876,60]
[399463888,1766378955032,1424.76,0.00032876,60]
[399463889,1766378955078,1594.45,0.00032876,60]
[399463890,1766378955125,1786.17683187,0.00032876,60]
[399463891,1766378955177,1424.76,0.00032876,60]
[399463892,1766378955231,1594.45,0.00032876,60]
[399463893,1766378955304,1424.76,0.00032876,60]
[399463894,1766378955365,1594.6422487,0.00032876,60]
[399463895,1766378955461,1424.76,0.00032876,60]
[399463896,1766378955590,1424.76,0.00032876,60]
[399463897,1766378955755,1424.76,0.00032876,60]
[399463898,1766378955949,1424.76,0.00032876,60]
[399463899,1766378956090,1424.76,0.00032876,60]
[399463900,1766378956160,504.08,0.00032876,60]
[399463901,1766378956258,500.0,0.00032876,60]
[399463902,1766378956333,1424.76,0.00032876,60]
[399463903,1766378956387,504.08,0.00032876,60]
[399463904,1766378956489,500.0,0.00032876,60]
[399463905,1766378956565,1424.76,0.00032876,60]
[399463906,1766378956624,504.08,0.00032876,60]
[399463907,1766378956729,500.0,0.00032876,60]
[399463908,1766378956818,1424.76,0.00032876,60]
[399463909,1766378956865,504.08,0.00032876,60]
[399463910,1766378956979,500.0,0.00032876,60]
[399463911,1766378957040,1424.76,0.00032876,60]
[399463912,1766378957088,504.08,0.00032876,60]
[399463913,1766378957187,500.0,0.00032876,60]
[399463914,1766378957231,500.0,0.00032876,60]
[399463915,1766378957282,1424.76,0.00032876,60]
[399463916,1766378957326,504.08,0.00032876,60]
[399463917,1766378957406,500.0,0.00032876,60]
[399463918,1766378957456,500.0,0.00032876,60]
[399463919,1766378957498,1424.76,0.00032876,60]
[399463920,1766378957540,504.08,0.00032876,60]
[399463921,1766378957635,500.0,0.00032876,60]
[399463922,1766378957684,500.0,0.00032876,60]
[399463923,1766378957730,500.0,0.00032876,60]
[399463924,1766378957941,1424.84678609,0.00032876,60]
[399463925,1766378958051,504.08,0.00032876,60]
[399463926,1766378958102,169.29491602,0.00032876,60]
[399463927,1766378958146,500.0,0.00032876,60]
[399463928,1766378958190,500.0,0.00032876,60]
[399463929,1766378958234,500.0,0.00032876,60]
[399463930,1766378958284,504.08,0.00032876,60]
[399463931,1766378958497,504.97205144,0.00032876,60]
[399463932,1766378958603,500.0,0.00032876,60]
[399463933,1766378958645,500.0,0.00032876,60]
[399463934,1766378958690,504.08,0.00032876,60]
[399463935,1766378958729,6836.93,0.00032876,60]
[399463936,1766378958995,500.0,0.00032876,60]
[399463937,1766378959079,500.0,0.00032876,60]
[399463938,1766378959260,6836.93,0.00032876,60]
[399463939,1766378959331,504.08,0.00032876,60]
[399463940,1766378959471,500.0,0.00032876,60]
[399463941,1766378959519,500.0,0.00032876,60]
[399463942,1766378959572,6836.93,0.00032876,60]
[399463943,1766378959616,504.08,0.00032876,60]
[399463944,1766378959659,500.0,0.00032876,60]
[399463945,1766378959701,500.0,0.00032876,60]
[399463946,1766378959742,504.08,0.00032876,60]
[399463947,1766378959791,6836.93,0.00032876,60]
[399463948,1766378959834,500.0,0.00032876,60]
[399463949,1766378959877,500.0,0.00032876,60]
[399463950,1766378959918,504.08,0.00032876,60]
[399463951,1766378960015,6836.93,0.00032876,60]
[399463952,1766378960057,500.0,0.00032876,60]
[399463953,1766378960101,500.0,0.00032876,60]
[399463954,1766378960144,504.08,0.00032876,60]
[399463955,1766378960203,6836.93,0.00032876,60]
[399463956,1766378960247,500.0,0.00032876,60]
[399463957,1766378960290,500.0,0.00032876,60]
[399463958,1766378960338,504.08,0.00032876,60]
[399463959,1766378960386,6836.93,0.00032876,60]
[399463960,1766378960430,500.0,0.00032876,60]
[399463961,1766378960474,182.14609812,0.00032876,60]
[399463962,1766378960523,504.08,0.00032876,60]
[399463963,1766378960566,6836.93,0.00032876,60]
[399463964,1766378960608,500.0,0.00032876,60]
[399463965,1766378960654,504.08,0.00032876,60]
[399463966,1766378960696,6836.93,0.00032876,60]
[399463967,1766378960737,500.0,0.00032876,60]
[399463968,1766378960778,504.08,0.00032876,60]
[399463969,1766378960823,6836.93,0.00032876,60]
[399463970,1766378960864,500.0,0.00032876,60]
[399463971,1766378960905,504.08,0.00032876,60]
[399463972,1766378960949,500.0,0.00032876,60]
[399463973,1766378960991,504.08,0.00032876,60]
[399463974,1766378961122,500.0,0.00032876,60]
[399463975,1766378961184,504.08,0.00032876,60]
[399463976,1766378961362,538.98726129,0.00032876,60]
[399463977,1766378961413,504.08,0.00032876,60]
[399463978,1766378961657,504.29610669,0.00032876,60]
[399463979,1766378961755,747.53,0.00032876,60]
[399463980,1766378962010,747.53,0.00032876,60]
[399463981,1766378962135,500.0,0.00032876,60]
[399463982,1766378962250,747.53,0.00032876,60]
[399463983,1766378962385,503.73699234,0.00032876,60]
[399463984,1766378962500,747.53,0.00032876,60]
[399463985,1766378962700,6836.93,0.00032876,60]
[399463986,1766378962751,747.53,0.00032876,60]
[399463987,1766378962887,500.0,0.00032876,60]
[399463988,1766378962931,6836.93,0.00032876,60]
[399463989,1766378962980,747.53,0.00032876,60]
[399463990,1766378963137,506.8214504,0.00032876,60]
[399463991,1766378963186,6836.93,0.00032876,60]
[399463992,1766378963238,747.53,0.00032876,60]
[399463993,1766378963437,6836.93,0.00032876,60]
[399463994,1766378963516,747.53,0.00032876,60]
[399463995,1766378963897,6836.93,0.00032876,60]
[399463996,1766378963946,747.53,0.00032876,60]
[399463997,1766378964014,6836.93,0.00032876,60]
[399463998,1766378964074,747.53,0.00032876,60]
[399463999,1766378964182,6836.93,0.00032876,60]
[399464000,1766378964277,747.53,0.00032876,60]
[399464001,1766378964398,627.55364927,0.00032876,60]
[399464014,1766379031545,-538.144067,0.00012746,2]
[399464016,1766379031602,-257.3066617,0.00012746,2]
[399464017,1766379031613,-246.21593797,0.00012746,2]
[399464018,1766379031622,-576.35333259,0.00012884,2]
[399464019,1766379032530,5000.0,0.000153,120]
[399464026,1766379037702,-26.64666741,0.00012884,2]
[399464027,1766379037711,-150.0,0.00012884,2]
[399464028,1766379037719,-168.30232898,0.00013,2]
[399464029,1766379037728,-150.64899332,0.00013103,2]
[399464030,1766379037738,-300.0,0.00013272,2]
[399464031,1766379037746,-300.0,0.00013272,2]
[399464032,1766379037755,-500.0,0.00013273,2]
[399464033,1766379037764,-439.02541539,0.00013273,2]
[399464267,1766379042768,-60.97458461,0.00013273,2]
[399464268,1766379042777,-500.0,0.00013273,2]
[399464269,1766379042786,-500.0,0.00013273,2]
[399464270,1766379042795,-300.0,0.00013673,2]
[399464271,1766379042804,-296.193293,0.00013699,2]
[399464272,1766379042814,-996.804263,0.00013699,2]
[399464273,1766379042823,-12523.6710477,0.00013699,2]
[399464274,1766379042831,-500.0,0.00013699,2]
[399464275,1766379042840,-500.0,0.00013699,2]
[399464276,1766379042849,-305.35868692,0.00013699,2]
[399464277,1766379042858,-500.0,0.00013699,2]
[399464278,1766379042867,-500.0,0.00013821,2]
[399464279,1766379042876,-500.81918422,0.00013821,2]
[399464280,1766379042885,-1043.94430021,0.00013821,2]
[399464281,1766379042896,-399.77225955,0.00013821,2]
[399464282,1766379042906,-189.0,0.00013972,2]
[399464283,1766379042915,-1000.0,0.00014247,2]
[399464284,1766379042924,-1000.0,0.00014247,2]
[399464285,1766379042933,-295.97672547,0.00014247,2]
[399464286,1766379042942,-420.0,0.00014551,2]
[399464287,1766379042951,-235.24074269,0.00014794,2]
[399464288,1766379042961,-1006.42949967,0.00014795,2]
[399464289,1766379042970,-989.80793235,0.00014795,2]
[399464290,1766379042979,-177.0,0.00014884,2]
[399464291,1766379042988,-287.0,0.00015,2]
[399464292,1766379043000,-628.0287302,0.00015226,2]
[399464293,1766379043010,-264.9730967,0.00015226,2]
[399464294,1766379043018,-1000.0,0.00015244,2]
[399464295,1766379043027,-505.89270488,0.00015297,2]
[399464308,1766379055334,5000.0,0.000153,120]
[399464309,1766379307825,160.0,0.00014,30]
[399464310,1766379606281,160.0,0.00014,30]
[399464314,1766379852456,568.2,0.00014,30]
[399464317,1766379907118,162.0,0.00014,30]
[399464318,1766379988146,300.0,9.148e-05,120]
[399464319,1766380080928,150.0,4.2e-07,2]
[399464320,1766380089114,155.5,0.0001,10]
[399464321,1766380114895,308.87336993,0.0001,10]
[399464338,1766380231708,-648.85400953,8.087e-05,2]
[399464339,1766380231720,-614.35401849,8.087e-05,2]
[399464380,1766380237919,-1181.34538107,8.087e-05,2]
[399464382,1766380237931,-504.32018305,8.087e-05,2]
[399464385,1766380237946,-2051.12640786,8.087e-05,2]
[399464387,1766380237956,-534.0,8.087e-05,2]
[399464389,1766380237965,-168.14424876,8.184e-05,2]
[399464391,1766380237974,-500.0,8.674e-05,2]
[399464393,1766380237983,-500.0,8.674e-05,2]
[399464395,1766380237993,-500.0,8.674e-05,2]
[399464397,1766380238002,-500.0,8.674e-05,2]
[399464399,1766380238012,-500.0,8.674e-05,2]
[399464401,1766380238021,-500.0,8.674e-05,2]
[399464403,1766380238031,-501.73329735,8.674e-05,2]
[399464405,1766380238040,-500.0,8.674e-05,2]
[399464407,1766380238050,-500.0,8.674e-05,2]
[399464410,1766380238060,-337.16730595,8.674e-05,2]
[399464412,1766380238069,-500.0,8.674e-05,2]
[399464414,1766380238078,-500.0,8.674e-05,2]
[399464416,1766380238087,-500.0,8.674e-05,2]
[399464418,1766380238096,-500.0,8.674e-05,2]
[399464420,1766380238106,-500.0,8.674e-05,2]
[399464422,1766380238116,-197.88815371,8.674e-05,2]
[399464424,1766380238126,-500.0,8.674e-05,2]
[399464426,1766380238135,-402.21093511,8.674e-05,2]
[399464428,1766380238149,-500.0,8.674e-05,2]
[399464430,1766380238158,-500.0,8.674e-05,2]
[399464432,1766380238168,-500.0,8.674e-05,2]
[399464434,1766380238177,-500.0,8.674e-05,2]
[399464436,1766380238187,-451.35337171,8.674e-05,2]
[399464438,1766380238196,-1200.0,8.94e-05,2]
[399464440,1766380238205,-300.0,8.941e-05,2]
[399464442,1766380238215,-300.0,8.941e-05,2]
[399464444,1766380238224,-300.0,8.941e-05,2]
[399464446,1766380238234,-151.68366188,8.942e-05,2]
[399464448,1766380238244,-1200.0,8.943e-05,2]
[399464450,1766380238253,-243.87329677,8.943e-05,2]
[399464452,1766380238262,-1051.31790635,8.943e-05,2]
[399464454,1766380238272,-1051.31790635,8.943e-05,2]
[399464456,1766380238282,-1051.31790635,8.943e-05,2]
[399464458,1766380238291,-1051.31790635,8.943e-05,2]
[399464460,1766380238303,-1051.31790635,8.943e-05,2]
[399464462,1766380238316,-1051.31790635,8.943e-05,2]
[399464464,1766380238325,-1051.31790635,8.943e-05,2]
[399464466,1766380238334,-1051.31790635,8.943e-05,2]
[399464468,1766380238345,-1051.31790635,8.943e-05,2]
[399464470,1766380238354,-1051.31790635,8.943e-05,2]
[399464472,1766380238364,-1051.31790635,8.943e-05,2]
[399464474,1766380238374,-1051.31790635,8.943e-05,2]
[399464476,1766380238383,-500.0,8.944e-05,2]
[399464478,1766380238392,-500.0,9.218e-05,2]
[399464480,1766380238402,-500.0,9.492e-05,2]
[399464482,1766380238411,-291.78649388,9.766e-05,2]
[399464484,1766380238420,-525.0,9.834e-05,2]
[399464486,1766380238429,-420.0,9.835e-05,2]
[399464488,1766380238438,-1165.0,9.837e-05,2]
[399464490,1766380238448,-153.42,0.0001,2]
[399464492,1766380238457,-198.41021353,0.00010184,2]
[399464494,1766380238466,-153.42,0.000102,2]
[399464496,1766380238476,-153.42,0.000104,2]
[399464498,1766380238485,-587.0,0.00010819,2]
[399464500,1766380238496,-351.18,0.00010822,2]
[399464502,1766380238506,-18735.90802337,0.0001089,2]
[399464504,1766380238515,-291.79,0.00010922,2]
[399464506,1766380238525,-175.76,0.00010922,2]
[399464508,1766380238534,-175.76,0.00010922,2]
[399464510,1766380238543,-175.76,0.00010922,2]
[399464512,1766380238552,-175.76,0.00010922,2]
[399464514,1766380238562,-175.76,0.00010922,2]
[399464516,1766380238571,-169.31481386,0.00011179,2]
[399464518,1766380238580,-823.0,0.000119,2]
[399464520,1766380238589,-184.937733,0.00012157,2]
[399464522,1766380238599,-228.67617831,0.00012184,2]
[399464524,1766380238608,-1041.66666667,0.00012595,2]
[399464526,1766380238617,-1152.0,0.00013091,2]
[399464528,1766380238626,-169.31481386,0.00013263,2]
[399464530,1766380238636,-600.0,0.00013363,2]
[399464532,1766380238645,-725.8969314,0.00013669,2]
[399464534,1766380238655,-168.7923223,0.00013669,2]
[399464536,1766380238664,-500.0,0.00013698,2]
[399464538,1766380238675,-500.0,0.00013698,2]
[399464540,1766380238685,-500.0,0.00013698,2]
[399464542,1766380238694,-259.90328825,0.00013698,2]
[399464544,1766380238706,-500.0,0.00013698,2]
[399464546,1766380238715,-512.47419862,0.00013698,2]
[399464548,1766380238725,-500.0,0.00013698,2]
[399464550,1766380238734,-500.0,0.00013698,2]
[399464552,1766380238746,-500.0,0.00013698,2]
[399464554,1766380238756,-500.0,0.00013698,2]
[399464556,1766380238765,-500.0,0.00013698,2]
[399464558,1766380238776,-500.0,0.00013698,2]
[399464560,1766380238784,-500.0,0.00013698,2]
[399464562,1766380238793,-480.20211775,0.00013698,2]
[399464564,1766380238803,-2685.35,0.00013698,2]
[399464566,1766380238812,-2685.35,0.00013698,2]
[399464568,1766380238821,-2685.35,0.00013698,2]
[399464570,1766380238831,-2685.35,0.00013698,2]
[399464572,1766380238840,-2685.35,0.00013698,2]
[399464574,1766380238849,-2685.35,0.00013698,2]
[399464576,1766380238858,-2685.35,0.00013698,2]
[399464578,1766380238868,-2685.35,0.00013698,2]
[399464581,1766380238879,-2685.35,0.00013698,2]
[399464582,1766380238889,-2685.35,0.00013698,2]
[399464584,1766380238898,-2685.35,0.00013698,2]
[399464586,1766380238907,-2685.35,0.00013698,2]
[399464589,1766380238917,-2685.35,0.00013698,2]
[399464590,1766380238926,-2685.35,0.00013698,2]
[399464592,1766380238935,-2685.35,0.00013698,2]
[399464594,1766380238944,-2685.35,0.00013698,2]
[399464596,1766380238954,-2685.35,0.00013698,2]
[399464598,1766380238963,-2685.35,0.00013698,2]
[399464600,1766380238972,-2685.35,0.00013698,2]
[399464603,1766380238983,-2685.35,0.00013698,2]
[399464604,1766380238994,-2685.35,0.00013698,2]
[399464607,1766380239004,-2685.35,0.00013698,2]
[399464608,1766380239014,-2685.35,0.00013698,2]
[399464610,1766380239023,-2685.42001984,0.00013698,2]
[399464613,1766380239034,-500.0,0.00013698,2]
[399464615,1766380239045,-500.0,0.00013698,2]
[399464617,1766380239054,-500.0,0.00013698,2]
[399464619,1766380239064,-500.0,0.00013698,2]
[399464620,1766380239074,-1000.0,0.00013699,2]
[399464623,1766380239084,-2000.0,0.00013699,7]
[399464624,1766380239094,-2605.55223815,0.00013704,2]
[399464626,1766380239103,-160.0,0.00013717,2]
[399464628,1766380239113,-1000.0,0.000138,2]
[399464631,1766380239123,-1000.0,0.000138,2]
[399464633,1766380239132,-1000.0,0.000138,2]
[399464634,1766380239142,-1000.0,0.000138,2]
[399464636,1766380239152,-1000.0,0.000138,2]
[399464638,1766380239161,-1000.0,0.000138,2]
[399464641,1766380239171,-1000.0,0.000138,2]
[399464643,1766380239182,-1000.0,0.000138,2]
[399464645,1766380239192,-1000.0,0.000138,2]
[399464647,1766380239202,-1000.0,0.000138,2]
[399464649,1766380239213,-513.01817,0.000138,2]
[399464651,1766380239223,-500.0,0.00014,10]
[399464653,1766380239233,-258.94214308,0.00014184,2]
[399464655,1766380239247,-260.0,0.00014265,2]
[399464657,1766380239257,-1613.0,0.000144,2]
[399464658,1766380239267,-2000.0,0.00014514,7]
[399464661,1766380239278,-720.0,0.000147,2]
[399464663,1766380239289,-360.0,0.00014813,2]
[399464665,1766380239300,-2340.76327005,0.000149,2]
[399464666,1766380239312,-1000.0,0.00015,2]
[399464669,1766380239322,-500.0,0.000152,20]
[399464671,1766380239332,-500.0,0.000152,10]
[399464672,1766380239343,-500.0,0.000152,20]
[399464674,1766380239353,-166.66666667,0.000153,2]
[399464677,1766380239363,-2000.0,0.00015329,7]
[399464678,1766380239372,-460.0,0.00015361,2]
[399464680,1766380239383,-725.8969314,0.00015387,2]
[399464681,1766380239392,-552.58844321,0.00015454,2]
[399464682,1766380239402,-150.49,0.00015496,2]
[399464683,1766380239410,-2170.842,0.00015496,2]
[399464684,1766380239419,-1362.0,0.00015496,2]
[399464685,1766380239429,-764.105,0.00015496,2]
[399464686,1766380239438,-416.0,0.00015496,2]
[399464687,1766380239447,-1063.0,0.0001584,2]
[399464688,1766380239457,-560.0,0.00015908,2]
[399464689,1766380239466,-100000.0,0.0001599,2]
[399464690,1766380239476,-5593.144698,0.00016,2]
[399464691,1766380239486,-2000.0,0.00016144,7]
[399464692,1766380239496,-864.0,0.00016169,2]
[399464693,1766380239505,-289.20810786,0.00016184,2]
[399464694,1766380239515,-660.0,0.00016456,2]
[399464695,1766380239524,-160.0,0.00016589,5]
[399464696,1766380239534,-284.0,0.0001663,3]
[399464697,1766380239544,-2000.0,0.00016959,7]
[399464698,1766380239553,-153.0,0.00016986,2]
[399464699,1766380239562,-153.0,0.00016986,2]
[399464700,1766380239571,-760.0,0.00017004,2]
[399464701,1766380239580,-725.8969314,0.00017105,2]
[399464702,1766380239591,-326.0,0.00017357,2]
[399464703,1766380239600,-179.85611511,0.00017447,2]
[399464704,1766380239609,-326.0,0.00017463,2]
[399464705,1766380239619,-326.0,0.00017475,2]
[399464706,1766380239629,-500.0,0.00017534,7]
[399464707,1766380239638,-153.0,0.00017534,2]
[399464708,1766380239647,-153.0,0.00017534,2]
[399464709,1766380239656,-153.0,0.00017534,2]
[399464710,1766380239666,-154.1935153,0.00017534,2]
[399464711,1766380239676,-153.0,0.00017534,2]
[399464712,1766380239685,-860.0,0.00017552,2]